Cogmind - Beta 15 @@@ ROGUE MODE // 2025.09.23 @ 22:06:40 Player: luka.null Result: Destroyed by IW-GXT(j) with Overtuned Pulse Rifle Performance ------------- Evolutions (0) 0 Regions Visited (3) 600 Robots Destroyed (17) 85 Value Destroyed (390) 390 Prototype IDs (6) 120 Alien Tech Used (0) 0 Bonus (800) 800 TOTAL SCORE: 1995 Bonus ------- Registered with UFD 300 Met Optimus in HQ 500 Cogmind --------- Core Integrity 0/250 Matter 300/300 Energy 134/150 System Corruption 0% Temperature Warning (392) Movement Hovering (236) Ox3 Location -8/Scraptown Parts ------- > --- POWER (1) -------- Light Angular Momentum Engine > --- PROPULSION (2) --- Airjet Airjet > --- UTILITY (2) ------ High-capacity Storage Unit Makeshift Light Armor Plating > --- WEAPON (2) ------- Overtuned Pulse Rifle > --- INVENTORY (20) --- Light Ion Engine Light Deuterium Engine Overtuned Treads Overtuned Treads Overtuned Treads Scrap Suit Heat Sink Makeshift Light Armor Plating Medium Laser Autogun Autogun Autogun Autogun Mace Heavy Mace Peak State ------------ > --- POWER ------------ Light Angular Momentum Engine > --- PROPULSION ------- Airjet Airjet > --- UTILITY ---------- High-capacity Storage Unit Makeshift Light Armor Plating > --- WEAPON ----------- Overtuned Pulse Rifle Overtuned Pulse Rifle > --- INVENTORY -------- Light Ion Engine Light Deuterium Engine Overtuned Treads Overtuned Treads Overtuned Treads Scrap Suit Heat Sink Makeshift Light Armor Plating Medium Laser Autogun Autogun Autogun Autogun Mace Heavy Mace [Rating: 26] Favorites ----------- Power Light Ion Engine Engine Light Ion Engine Propulsion Hover Unit Treads Light Treads Hover Unit Hover Unit Utility Sensor Array Device Sensor Array Storage High-capacity Storage Unit Protection Makeshift Light Armor Plating Weapon Heavy EM Pulse Gun Energy Gun Heavy EM Pulse Gun Ballistic Gun Light Assault Rifle Build | -11 -10 -10 -8 ------- Run | Yrd Mat Sub Scr Slots Evolved . | . . . . Power . | . . . . Propulsion . | . . . . Utility . | . . . . Weapon . | . . . . Parts Attached 32 | 6 15 . 11 Power 4 | 1 1 . 2 Engine 4 | 1 1 . 2 Core . | . . . . Reactor . | . . . . Propulsion 8 | 2 2 . 4 Treads 4 | 2 . . 2 Leg . | . . . . Wheel . | . . . . Hover 4 | . 2 . 2 Flight . | . . . . Utility 8 | 1 4 . 3 Device 3 | . 3 . . Storage 3 | 1 1 . 1 Processor . | . . . . Hackware . | . . . . Protection 2 | . . . 2 Artifact . | . . . . Weapon 12 | 2 8 . 2 Energy Gun 10 | 1 7 . 2 Energy Cannon . | . . . . Ballistic Gun 2 | 1 1 . . Ballistic Cannon . | . . . . Launcher . | . . . . Special Weapon . | . . . . Impact Weapon . | . . . . Slashing Weapon . | . . . . Piercing Weapon . | . . . . Special Melee Weapon . | . . . . Unidentified Prototypes . | . . . . Parts Lost 11 | . 6 . 5 Power . | . . . . Propulsion 2 | . 1 . 1 Utility 1 | . . . 1 Weapon 8 | . 5 . 3 Highest Loss Streak 6 | . 6 . 2 To Critical Strikes . | . . . . Average Backups 9 | . 6 10 10 Power . | . . . . Propulsion 1 | . . 2 2 Utility 1 | . 1 1 1 Weapon 6 | . 4 7 7 Tool/Special . | . . . . Unused Backups 12 | . 1 . 11 Power . | . . . . Propulsion 2 | . . . 2 Utility 2 | . . . 2 Weapon 8 | . 1 . 7 Tool/Special . | . . . . Average Slot Usage (%) 97 | . 92 100 99 Engine 14 | . 14 14 14 Treads 7 | . 20 . . Hover 19 | . 2 28 27 Device 12 | . 12 14 13 Storage 14 | . 14 14 14 Energy Gun 26 | . 24 28 27 Ballistic Gun 1 | . 3 . . Peak Build Rating 26 | 6 10 10 26 Average Rating 9 | 4 8 10 10 On Entrance 6 | . 6 10 10 Naked Turns . | . . . . Heaviest Build 59 | 11 22 20 59 Greatest Support 40 | 40 40 12 36 Greatest Overweight (x) 9 | 1 3 1 9 Average Overweight (x) 1 | . . 1 2 Largest Inventory Capacity 20 | 8 10 10 20 Average Capacity 14 | 7 9 10 18 Most Carried 17 | 1 10 10 17 Average Carried 9 | . 6 10 10 Final Capacity 20 | 8 10 10 20 Final Carried 16 | 1 10 10 16 Class Distribution -------------------- 97% | Mutant Dominant Class ---------------- Mutant | -10/Materials Mutant | -10/Subcaves Mutant | -8/Scraptown Resources | -11 -10 -10 -8 ----------- Run | Yrd Mat Sub Scr Matter Collected 530 | 207 203 . 120 Remotely . | . . . . Salvage Created 448 | . 391 57 . Parts 35 | . 30 5 . Haulers Intercepted . | . . . . Recyclers Shooed . | . . . . Parts Field Recycled . | . . . . Retrieved Matter . | . . . . Parts Self-Destructed 10 | . . 10 . Prevented . | . . . . Kills | -11 -10 -10 -8 ------- Run | Yrd Mat Sub Scr Combat Hostiles Destroyed 16 | . 13 3 . Guns 12 | . 9 3 . AOE 4 | . 4 . . Classes Destroyed 3 | . 3 . . Watcher 1 | . 1 . . Swarmer 9 | . 6 3 . Grunt 7 | . 7 . . Best Kill Streak 3 | . 3 3 . Combat Bots Only 3 | . 2 3 . Max Kills in Single Turn 2 | . 2 1 . Gunslinging . | . . . . Exploded 2 | . 2 . . Melee . | . . . . Uniques/NPCs Destroyed . | . . . . Combat | -11 -10 -10 -8 -------- Run | Yrd Mat Sub Scr Hostile Shots Fired 107 | . 60 17 30 Missed 31 | . 13 7 11 Hits 76 | . 47 10 19 Melee 1 | . . . 1 Projectile 75 | . 47 10 18 Damage Taken 1254 | . 695 82 477 Core 253 | . 88 26 139 Absorbed by Shields . | . . . . Core Remaining (%) 100 | 100 . . . Volleys Fired 43 | . 31 4 8 Largest 2 | . 2 2 2 Hottest 160 | . 90 90 160 Shots Fired 75 | . 54 8 13 Gun 75 | . 54 8 13 Cannon . | . . . . Launcher . | . . . . Special . | . . . . Kinetic . | . . . . Thermal 7 | . 1 . 6 Explosive . | . . . . Electromagnetic 68 | . 53 8 7 Robot Hit Streak 9 | . 8 9 2 Robot Miss Streak 4 | . 4 2 2 Penetration Max . | . . . . Secondary Targets 3 | . 2 1 . Max Gunslinging Chain 1 | . 1 1 . Shots Hit Robots 39 | . 29 4 6 Core Hits 21 | . 16 3 2 Critical Kills . | . . . . Critical Parts Destroyed . | . . . . Critical Strikes 3 | . 3 . . Corrupt 3 | . 3 . . Melee Attacks . | . . . . Impact . | . . . . Slashing . | . . . . Piercing . | . . . . Sneak Attacks . | . . . . Combat Hostiles . | . . . . Follow-up Attacks . | . . . . Damage Inflicted 982 | . 816 55 111 Guns 564 | . 398 55 111 Cannons . | . . . . Explosions 415 | . 415 . . Melee . | . . . . Ramming 3 | . 3 . . Kinetic . | . . . . Thermal 348 | . 277 . 71 Explosive 138 | . 138 . . Electromagnetic 493 | . 398 55 40 Impact . | . . . . Slashing . | . . . . Piercing . | . . . . Highest Corruption . | . . . . Average Corruption . | . . . . Corruption Purged . | . . . . Corruption Blocked . | . . . . Overload Shots . | . . . . Overflow Damage 115 | . 115 . . Projectiles . | . . . . Explosions 115 | . 115 . . Melee . | . . . . Knockbacks . | . . . . Impact . | . . . . Kinetic . | . . . . Secondary . | . . . . Self-Inflicted Damage 223 | . 223 . . Shots 4 | . 4 . . Rammed 1 | . 1 . . Targets Rammed 1 | . 1 . . Kicked . | . . . . Crushed . | . . . . Highest Temperature 380 | . 150 . 380 Average Temperature 61 | . 54 . 81 Received Heat Transfer 387 | . 159 . 228 Effects 1 | . . . 1 Short Circuit 1 | . . . 1 Siege Activations . | . . . . Martial Activations . | . . . . Shielding Activations . | . . . . Robots Disrupted . | . . . . Combat Hostiles . | . . . . Robots Corrupted . | . . . . Combat Hostiles . | . . . . Parts Fried . | . . . . Impact Corruptions . | . . . . Robots Melted . | . . . . Combat Hostiles . | . . . . Parts Melted . | . . . . Heat Transferred 361 | . 250 . 111 Parts Sabotaged . | . . . . Parts Stolen . | . . . . Parts Stripped . | . . . . Power Chain Reactions 3 | . 3 . . Alert | -11 -10 -10 -8 ------- Run | Yrd Mat Sub Scr Maximum Alert Level 1 | . 1 . . Low Security (%) 98 | 100 98 . . Level 1 1 | . 1 . . Level 2 . | . . . . Level 3 . | . . . . Level 4 . | . . . . Level 5 . | . . . . High Security . | . . . . Max Security . | . . . . Peak Influence 211 | . 211 . . Initial . | . . . . Average 78 | . 83 . . Influence Increases 535 | . 465 70 . Destroy 0b10 Robot/C 320 | . 260 60 . Destroy 0b10 Robot/NC 5 | . 5 . . Destroy Leader 72 | . 62 10 . Successful Hack 5 | . 5 . . Disable Machine 30 | . 30 . . Destroy Structure 58 | . 58 . . Partial Spotted 15 | . 15 . . Lose Combat Pursuer 30 | . 30 . . Influence Decreases 535 | . 380 155 . Entered New Map 41 | . . 41 . Time Decay 434 | . 320 114 . Lost Part 60 | . 60 . . Squads Dispatched 2 | . 2 . . Investigation 1 | . 1 . . Extermination . | . . . . Reinforcement 1 | . 1 . . Assault . | . . . . Garrison . | . . . . Intercept . | . . . . Searches Triggered . | . . . . Construction Impeded . | . . . . Haulers Reinforced . | . . . . Active Scanning Responses . | . . . . Cargo Convoy Interrupts . | . . . . Stealth | -11 -10 -10 -8 --------- Run | Yrd Mat Sub Scr Distress Signals 1 | . 1 . . Communications Jammed . | . . . . Distress Signals . | . . . . Times Spotted 42 | . 19 3 20 Peak Tracking Total 6 | . 5 3 6 Tactical Retreats 2 | . 2 . . Traps | -11 -10 -10 -8 ------- Run | Yrd Mat Sub Scr Traps Triggered . | . . . . Indirectly . | . . . . Trap Hack Attempts . | . . . . Triggered . | . . . . Disarmed . | . . . . Reprogrammed . | . . . . Reused . | . . . . Traps Extracted . | . . . . Installed . | . . . . Triggered . | . . . . Machines | -11 -10 -10 -8 ---------- Run | Yrd Mat Sub Scr Machines Disabled 2 | . 2 . . Max in Single Turn 1 | . 1 . . Machines Repaired . | . . . . Machines Dismantled . | . . . . Machines Sabotaged . | . . . . Overloaded Fab Kills . | . . . . Hacking | -11 -10 -10 -8 --------- Run | Yrd Mat Sub Scr Machines Accessed 8 | . 3 . 5 Terminals 3 | . 3 . . Fabricators . | . . . . Repair Stations . | . . . . Recycling Units . | . . . . Scanalyzers . | . . . . Garrison Access . | . . . . Total Hacks 36 | . 9 . 27 Successful 30 | . 3 . 27 Failed 6 | . 6 . . Catastrophic . | . . . . Database Lockouts . | . . . . Manual . | . . . . Terminals 9 | . 9 . . Fabricators . | . . . . Repair Stations . | . . . . Recycling Units . | . . . . Scanalyzers . | . . . . Garrison Access . | . . . . Terminal Hacks 30 | . 3 . 27 Record 26 | . . . 26 Robot Analysis 1 | . 1 . . Terminal Index 1 | . 1 . . Alert Level 1 | . 1 . . Proto ID Catalog 1 | . . . 1 Fabricator Hacks . | . . . . Repair Station Hacks . | . . . . Recycling Unit Hacks . | . . . . Scanalyzer . | . . . . Garrison Access Hacks . | . . . . Unauthorized Hacks . | . . . . Terminals . | . . . . Fabricators . | . . . . Repair Stations . | . . . . Recycling Units . | . . . . Scanalyzers . | . . . . Garrison Access . | . . . . Data Cores Recovered . | . . . . Used . | . . . . Hacking Detections 1 | . 1 . . Full Trace Events 1 | . 1 . . Feedback Events . | . . . . Feedback Blocked . | . . . . Robot Schematics Acquired . | . . . . Robots Built . | . . . . Authchips . | . . . . Time . | . . . . Total Robot Build Rating . | . . . . Part Schematics Acquired . | . . . . Parts Built . | . . . . Authchips . | . . . . Time . | . . . . Total Part Build Rating . | . . . . Parts Repaired . | . . . . Time . | . . . . Parts Recycled . | . . . . Recycled Matter . | . . . . Retrieved Matter . | . . . . Retrieved Components . | . . . . Parts Scanalyzed . | . . . . Part Schematics Acquired . | . . . . Parts Damaged . | . . . . Bothacking | -11 -10 -10 -8 ------------ Run | Yrd Mat Sub Scr Used RIF Installer . | . . . . Robots Hacked . | . . . . Non-combat . | . . . . Combat . | . . . . Robot Hacks Applied . | . . . . Relay Couplers Released . | . . . . Fabnet Peak Effective % . | . . . . Robots Rewired . | . . . . Allies Hacked . | . . . . Hacks Repelled . | . . . . Allies | -11 -10 -10 -8 -------- Run | Yrd Mat Sub Scr Total Allies . | . . . . Largest Group . | . . . . Highest-Rated Group . | . . . . Highest-Rated Ally . | . . . . Total Orders . | . . . . Ally Attacks . | . . . . Total Damage . | . . . . Kills . | . . . . Allies Corrupted . | . . . . Allies Melted 6 | . . . 6 Intel | -11 -10 -10 -8 ------- Run | Yrd Mat Sub Scr Active Infowar (turns) 4328 | . 1398 276 2654 Sensors 4328 | . 1398 276 2654 Robot Analysis Total 1 | . 1 . . Derelict Logs Recovered 1 | . . 1 . Drone Launches . | . . . . Drone Recoveries . | . . . . Exploration | -11 -10 -10 -8 ------------- Run | Yrd Mat Sub Scr Turns Passed 4755 | 96 1591 276 2792 Spaces Moved 2268 | 57 807 228 1176 Core 6 | 6 . . . Treads 763 | 51 701 . 11 Legs . | . . . . Wheels . | . . . . Hover 1499 | . 106 228 1165 Flight . | . . . . Fastest Speed 50 | 50 116 116 116 Average Speed 198 | 152 174 116 233 Slowest Speed 600 | 160 260 116 600 Overloaded Moves . | . . . . Propulsion Burnouts . | . . . . Robots Hopped . | . . . . Potential Cave-ins . | . . . . Cave-ins Triggered . | . . . . Exploration Rate (%) 41 | 6 77 13 70 Regions Visited 3 Branch Regions 2 Pre-discovered Areas . | . . . . Known Exits Taken . | . . . . Unknown Exits Taken 3 | 1 1 1 . Scrap Searched 3 | . . . 3 Spaces Dug . | . . . . Terrain Destroyed 68 | . 68 . . Melee . | . . . . Projectile . | . . . . AOE 68 | . 68 . . Terrain Rammed . | . . . . Walls Destroyed . | . . . . Machines Disabled . | . . . . Actions | -11 -10 -10 -8 --------- Run | Yrd Mat Sub Scr Total 2440 | 63 933 231 1213 Wait 53 | . 52 . 1 Move 2265 | 56 806 227 1176 Hop . | . . . . Pick Up 24 | 1 16 . 7 Fast Attach 12 | 6 3 . 3 Attach 6 | . 5 . 1 Detach 1 | . 1 . . Swap 19 | . 10 . 9 Drop 15 | . 8 . 7 Fire 43 | . 31 4 8 Melee . | . . . . Ram . | . . . . Kick . | . . . . Crush 1 | . 1 . . Escape Stasis . | . . . . Rewire 1 | . . . 1 Trap . | . . . . Miscellaneous . | . . . . Route ------- -11/Scrapyard -10/Materials (discovered 5 exits: [*Mat x2] / [*Min x2] / [*Sub]) -10/Subcaves -8/Scraptown (discovered 2 exits: *Fac x2) History --------- Turn | Location | Event 23 | -11/Scrapyard | Discovered new exit (range 16) 97 | -11/Scrapyard | Entered Materials 311 | -10/Materials | Build established: Mutant 353 | -10/Materials | Discovered new exit (range 16) 669 | -10/Materials | Discovered new exit (range 12) 1004 | -10/Materials | Lost 6 parts (1n5w) 1210 | -10/Materials | Discovered new exit (range 6) 1644 | -10/Materials | Discovered new exit (range 7) 1679 | -10/Materials | Discovered new exit (range 6) 1688 | -10/Materials | Entered Subcaves 1689 | -10/Subcaves | Approached by a straggling Scientist 1782 | -10/Subcaves | Learned Materials interactive machine intel 1957 | -10/Subcaves | Scientist uncovered a shortcut to Scraptown 1964 | -10/Subcaves | Entered Scraptown 2159 | -8/Scraptown | Visited Shadow of the Wyrm 2199 | -8/Scraptown | Visited UFD Registry 2217 | -8/Scraptown | Visited Science Testing Area 3137 | -8/Scraptown | Registered with UFD as "Roughbank" 3261 | -8/Scraptown | Visited Science Guys 3409 | -8/Scraptown | Visited Curators Association 3510 | -8/Scraptown | Visited Sword Containment 3649 | -8/Scraptown | Discovered new exit (range 5) 3726 | -8/Scraptown | Found Scrap Suit 3949 | -8/Scraptown | Visited Cartography Club 4109 | -8/Scraptown | Visited Junk Repository 4263 | -8/Scraptown | Met Optimus 4263 | -8/Scraptown | Accepted into 0bPrime 4554 | -8/Scraptown | Civil war broke out across Scraptown 4613 | -8/Scraptown | Core integrity fell below 50% 4629 | -8/Scraptown | Identified exit to Factory 4653 | -8/Scraptown | Core integrity fell below 20% 4658 | -8/Scraptown | Lost 5 allies 4756 | -8/Scraptown | Destroyed by IW-GXT(j) with Overtuned Pulse Rifle Last Messages --------------- 04689_ FU-8KT(E) suffers critical hit (Burn). 04689_ FU-8KT(E) destroyed. 04691_ Dropped Hover Unit. 04693_ Acquired 30 matter. 04711_ Slug penetrates P9-YYV(x). 04711_ P9-YYV(x) suffers critical hit (Destroy). 04711_ P9-YYV(x) destroyed. 04713_ Acquired Ovr. Treads. 04717_ Acquired 10 matter. 04724_ Dropped Ovr. Treads. 04725_ Acquired Ovr. Treads. 04730_ SQ-5JO(E) destroyed. 04733_ B0-WXJ(j) destroyed. 04735_ Acquired 20 matter. 04738_ VN-4XJ(x) destroyed. 04740_ Slug penetrates Q6-945(j). 04744_ Q6-945(j) destroyed. 04753_ Ovr. Pulse Rifle destroyed. 04756_ Ovr. Pulse Rifle broken. 04756_ Overheating: Short circuit. Map ----- +----------------------------------------------------+ | ?????????????????????????????????????????????????? | | ?????????????????????????????????????????????????? | | ?????????????????????????????????????????????????? | | ?????????????????????????????????????????????????? | | ?????????????????????????????????????????????????? | | ?????????????????????????????????#####???????????? | | ?????????????????????????????????#"""#???????????? | | ??###################???####?????#" "#???????????? | | ?#"""##"""##""|##"""#??## ##????# < #???????????? | | ?#"" ##"" ##""|##! "#### ###### ##??????????? | | ?#"" #??????????? | | ?# #??????????? | | ?####################### = ###########??????????? | | ???????????????????????##%j##????????????????????? | | ##??##???##?????????????#=%#?????????????????????? | | "#??#"###"#?????????????#*[#?????????????????????? | | "#### "&" ####??????????# [#?#???????##??????????? | | "#" """ "#??????????# #? ??????? #??????????? | | "##"" ""#???????????#![#? ?????## #??????????? | | "##!" "&#???????????#%=#? #??### ???????????? | | "##"" ""##??????????#!%#? ??#X###???????????? | | "#" "#???#"##???#*%#? #??### ####????????? | | "##"" ""###### X###?#[!#? #??# #????????? | | "##/" "[#?# #?#*%##"#### ######????????? | | ##"" ""### #?#[=# #????????? | | "#" "## #?#@!# #????????? | | ####### ########### ###?#!=## ###########????????? | | ####### ########### #####=[## #########??????????? | | """"""" """" """"" " " j*= ## !!=#??????????? | | * *% =%! ![%*=*%!=!## ][#??????????? | | =!% ! ! =![!=!%*## ####??????????? | | =* !%!%=!!= ## !#??????????? | | [*%!==[ =## !!#??????????? | | /*==%%=! !!#??????????? | | """"""""""" "" """""""" =!=[[## ####??????????? | | """"""""""""""""""""""""" ==% ## #??????????? | | ##### ################"" !! ## [/#??????????? | | ##????????#"" % !"#########?????????? | | X"#????????#"" !/% ##??? #?????????? | | "" "" ##????????#"" = "#?? $ #?????????? | | "" "" X"#??????###" ![ #" #?????????? | | " " #########!# * ##! ##??????????? | | "" *[[%[ !%*[%= #???????????? | | "" =!%!!=!%%% /##= #?????????? | | " " ###""####!#" !!!=%"#?? $ #?????????? | | "" "" ""#??????###""[%!%! #??? #?????????? | | "" "" ##????????#" =[%!["#????####?????????? | | X"#????????#" =!* #?????????????????? | | ##????????#""!![ "#????? """"""?????? | | ##### ######???????###""% #??? " ""?????? | +----------------------------------------------------+ Best States ------------- Heat Dissipation 25 Energy Generation 18 Energy Capacity 250 Matter Stores 300 Matter Capacity 300 Sight Range 16 Robot Scan Range 14 Terrain Scan Density 10 Armor Coverage 100 Evasion (%) 40 Recoil Reduction 2 Item Schematics ----------------- None Robot Schematics ------------------ None Fabricated ------------ Nothing Repaired ---------- Nothing Alien Tech Used ----------------- None Achievements -------------- None Challenges ------------ None Game ------ Seed ShieldIntegrityFocus Manual? 0 Play Time 00:50:33 Cumulative 13.7 hours Start 2025.09.23 @ 19:21:32 End 2025.09.23 @ 22:06:40 Sessions 1 Manual Loads 0 Difficulty Rogue Special Mode None Game No. 11 Rogue 8 Adventurer 3 Explorer 0 Win Type - Total 0 Types 0/0/0/0/0/0/0/0/0/0 Lore% 14 Gallery% 11 Achievement% 13 Wizard Run 0 Options --------- Layout 1 ASCII 0 Keyboard 0 Movement Vi Keybinds 0 Fullscreen 0 Font 20/Terminus Map View 64x48 Zoom Use 0% Tactical HUD 1 Map Filters NONE Filters NONE Steam 1 RUN: 7fa1db42-7a00-4c65-ac82-37d7e42edea3